bitfinex/quotes_SOLUSD_20220118
["timestamp","ask_amount","ask_price","bid_price","bid_amount"]
[1642548757818,10.691,140.37,140.31,10.25]
[1642548758020,35.72808914,140.36,140.31,10.25]
[1642548758220,35.97808914,140.36,140.31,10.25]
[1642548758620,3.1,140.36,140.31,10.25]
[1642548759021,2.85,140.36,140.31,10.25]
[1642548759226,10.6893,140.38,140.31,20.9391]
[1642548759424,0.25,140.35,140.31,10.25]
[1642548760027,0.25,140.35,140.27,59.97257151]
[1642548760028,5.765,140.35,140.27,10.25]
[1642548760250,5.765,140.35,140.25,3.9968867]
[1642548760251,3.1,140.34,140.25,3.9968867]
[1642548760449,9.1,140.34,140.25,3.9968867]
[1642548761050,21.40587747,140.33,140.23,33.41028394]
[1642548761353,3.101,140.32,140.23,10.42828394]
[1642548761549,41.1353,140.32,140.23,10.42828394]
[1642548761950,51.5799,140.32,140.23,10.42828394]
[1642548762155,29.7033,140.32,140.24,1.70277151]
[1642548762454,29.7033,140.32,140.24,10.5]
[1642548762455,23.7033,140.32,140.24,10.5]
[1642548762751,23.7033,140.32,140.25,1.45277151]
[1642548763152,23.7033,140.32,140.26,40.66782611]
[1642548763551,23.7033,140.32,140.26,42.11569525]
[1642548763753,23.5236,140.36,140.27,0.25]
[1642548763953,94.98647234,140.35,140.27,0.25]
[1642548764154,94.98647234,140.35,140.28,1.44786914]
[1642548764354,94.98647234,140.35,140.27,0.25]
[1642548764555,105.67817234,140.35,140.26,1.44786914]
[1642548764758,108.52817234,140.35,140.25,24.9678]
[1642548764955,108.52817234,140.35,140.26,6.0]
[1642548765359,108.52817234,140.35,140.26,44.86025377]
[1642548765559,10.9426,140.34,140.26,44.86025377]
[1642548766661,10.9426,140.34,140.26,55.55215377]
[1642548766860,0.25,140.34,140.26,55.55215377]
[1642548767059,73.76687234,140.35,140.27,0.25]
[1642548767262,70.91687234,140.35,140.27,0.25]
[1642548767461,70.91687234,140.35,140.27,1.69786914]
[1642548768662,70.91687234,140.35,140.29,39.17782418]
[1642548769664,0.25,140.34,140.25,35.2178]
[1642548769867,3.1,140.34,140.26,10.6914]
[1642548770067,3.1,140.34,140.25,35.2178]
[1642548770270,3.1,140.34,140.25,34.7178]
[1642548770466,27.4399,140.34,140.25,34.7178]
[1642548770667,38.1324,140.34,140.25,74.54028805]
[1642548771467,38.1324,140.34,140.25,85.23298805]
[1642548771667,38.1324,140.34,140.25,74.54028805]
[1642548773170,38.1324,140.34,140.25,10.25]
[1642548773171,45.1374,140.34,140.25,10.25]
[1642548773370,6.0,140.33,140.25,10.25]
[1642548773571,10.695,140.31,140.25,10.25]
[1642548773873,3.101,140.3,140.23,0.17828394]
[1642548774074,43.91881877,140.29,140.23,0.17828394]
[1642548774372,0.25,140.28,140.23,0.17828394]
[1642548774571,9.959,140.28,140.23,0.17828394]
[1642548775471,20.6562,140.28,140.23,0.17828394]
[1642548775876,71.26,140.26,140.23,0.17828394]
[1642548776074,11.87980003,140.25,140.13,14.60356034]
[1642548776275,42.98290003,140.25,140.13,14.60356034]
[1642548776673,10.7025,140.21,140.13,53.77543588]
[1642548776873,10.7025,140.21,140.13,14.60356034]
[1642548776874,18.2685,140.21,140.13,14.60356034]
[1642548777077,6.25,140.2,140.13,14.60356034]
[1642548777678,6.25,140.2,140.13,10.60667364]
[1642548777874,16.9532,140.2,140.13,10.60667364]
[1642548778475,16.9532,140.2,140.13,0.35667364]
[1642548778877,55.56126938,140.2,140.13,0.35667364]
[1642548779079,55.56126938,140.2,140.11,24.10647706]
[1642548779580,2.853,140.19,140.11,24.10647706]
[1642548779779,0.25,140.18,140.11,24.10647706]
[1642548780284,0.25,140.18,140.11,34.80927706]
[1642548780682,0.25,140.18,140.12,0.25]
[1642548780880,0.25,140.19,140.12,0.25]
[1642548781081,0.25,140.2,140.12,0.25]
[1642548781382,43.60815742,140.2,140.12,0.25]
[1642548781681,43.35815742,140.2,140.12,0.25]
[1642548782080,54.06135742,140.2,140.12,0.25]
[1642548782783,10.7032,140.2,140.12,0.25]
[1642548782983,0.25,140.19,140.12,0.25]
[1642548783582,0.25,140.19,140.11,34.80907706]
[1642548784385,0.25,140.19,140.11,24.10647706]
[1642548784986,2.854,140.2,140.12,0.25]
[1642548785486,1.37970477,140.24,140.12,6.25]
[1642548785685,1.37970477,140.24,140.12,16.5]
[1642548785886,6.0,140.23,140.12,16.5]
[1642548786086,1.37970477,140.24,140.12,16.5]
[1642548786286,1.37970477,140.24,140.13,10.7011]
[1642548786511,1.37970477,140.24,140.14,53.74462821]
[1642548786809,1.37970477,140.24,140.14,53.99462821]
[1642548787009,1.37970477,140.24,140.14,64.24462821]
[1642548787409,1.37970477,140.24,140.16,10.6987]
[1642548787610,1.37970477,140.24,140.17,44.98167442]
[1642548787913,0.25,140.23,140.17,45.23167442]
[1642548788110,0.25,140.23,140.17,44.98167442]
[1642548788309,2.853,140.22,140.17,44.98167442]
[1642548788508,51.41148243,140.22,140.12,10.25]
[1642548788710,0.25,140.21,140.15,0.25]
[1642548789210,0.25,140.21,140.12,10.25]
[1642548789409,13.8055,140.21,140.12,10.25]
[1642548789609,13.8055,140.21,140.13,46.29671634]
[1642548790512,6.0,140.2,140.13,46.29671634]
[1642548790709,3.103,140.19,140.13,46.29671634]
[1642548791612,2.853,140.19,140.13,46.29671634]
[1642548791814,6.0,140.2,140.14,0.25]
[1642548792011,24.0237,140.21,140.14,0.25]
[1642548792211,2.853,140.23,140.14,0.25]
[1642548792511,6.0,140.22,140.14,0.25]
[1642548792710,12.08030477,140.24,140.14,0.25]
[1642548793413,12.08030477,140.24,140.14,10.9503]
[1642548793611,37.85889264,140.23,140.14,10.9503]
[1642548793812,2.853,140.22,140.14,10.9503]
[1642548794420,2.853,140.22,140.13,46.29671634]
[1642548794622,0.25,140.21,140.13,46.29671634]
[1642548794819,42.40287512,140.2,140.13,46.29671634]
[1642548795220,0.25,140.19,140.13,46.29671634]
[1642548795419,2.853,140.21,140.13,46.29671634]
[1642548795621,23.2971,140.22,140.14,10.9506]
[1642548796221,2.853,140.23,140.14,10.9506]
[1642548796423,1.37970477,140.24,140.14,10.9506]
[1642548796821,1.37970477,140.24,140.17,10.698]
[1642548797321,1.37970477,140.24,140.18,36.68724933]
[1642548797525,2.853,140.23,140.18,36.68724933]
[1642548797722,0.25,140.22,140.18,36.68724933]
[1642548798122,0.25,140.23,140.18,36.68724933]
[1642548799223,37.777604,140.23,140.18,36.68724933]
[1642548799624,0.25,140.23,140.18,36.68724933]
[1642548799824,0.25,140.23,140.15,10.25]
[1642548800024,2.853,140.22,140.15,10.25]
[1642548800224,3.103,140.23,140.15,10.25]
[1642548800428,3.103,140.23,140.15,20.9493]
[1642548800830,3.103,140.23,140.16,45.25405958]
[1642548801228,13.8037,140.23,140.16,45.25405958]
[1642548802427,3.103,140.23,140.16,45.25405958]
[1642548803529,10.9509,140.23,140.16,45.25405958]
[1642548803731,2.853,140.22,140.16,45.25405958]
[1642548804132,0.25,140.21,140.16,45.25405958]
[1642548804332,2.853,140.23,140.16,45.25405958]
[1642548804533,1.37970477,140.24,140.17,0.25]
[1642548804733,1.37970477,140.24,140.16,45.25405958]
[1642548804933,4.23270477,140.24,140.16,45.25405958]
[1642548805362,39.56134351,140.23,140.16,55.95305958]
[1642548805561,39.81134351,140.23,140.16,55.95305958]
[1642548805760,39.81134351,140.23,140.16,45.25405958]
[1642548806361,0.25,140.23,140.16,45.25405958]
[1642548806964,2.853,140.22,140.16,45.25405958]
[1642548807163,0.25,140.21,140.16,45.25405958]
[1642548807661,12.08020477,140.24,140.16,55.95335958]
[1642548807861,3.103,140.23,140.16,45.25405958]
[1642548809362,0.25,140.23,140.16,45.25405958]
[1642548809663,0.25,140.23,140.16,55.95345958]
[1642548811566,0.25,140.23,140.16,55.00197785]
[1642548814677,0.25,140.23,140.16,44.30257785]
[1642548815177,3.103,140.23,140.16,44.30257785]
[1642548816380,0.25,140.23,140.16,44.30257785]
[1642548817179,10.9507,140.23,140.14,24.52916259]
[1642548817484,2.853,140.22,140.14,24.52916259]
[1642548817679,0.25,140.21,140.14,24.52916259]
[1642548817879,0.25,140.21,140.14,2.00886259]
[1642548818278,35.4133,140.21,140.15,35.61588496]
[1642548818481,24.7111,140.21,140.15,35.61588496]
[1642548819178,49.3567927,140.2,140.15,35.61588496]
[1642548819380,49.3567927,140.2,140.13,2.00886259]
[1642548819381,52.2097927,140.2,140.13,2.00886259]
[1642548819678,0.25,140.19,140.13,2.00886259]
[1642548819879,0.25,140.19,140.12,26.29186259]
[1642548820279,10.9539,140.19,140.12,2.00886259]
[1642548820483,24.9069,140.19,140.12,2.00886259]
[1642548820680,27.7599,140.19,140.11,2.00886259]
[1642548820880,27.7599,140.19,140.13,39.33216573]
[1642548821080,14.203,140.19,140.13,39.33216573]
[1642548821282,8.203,140.19,140.13,39.33216573]
[1642548821483,0.25,140.19,140.13,39.33216573]
[1642548821681,49.3567927,140.2,140.13,39.33216573]
[1642548823082,0.25,140.19,140.13,39.33216573]
[1642548823283,0.25,140.19,140.11,2.00886259]
[1642548823484,2.854,140.18,140.11,2.00886259]
[1642548823782,0.25,140.17,140.11,2.00886259]
[1642548824384,41.80188259,140.17,140.11,44.56044449]
[1642548824785,41.80188259,140.17,140.1,2.00886259]
[1642548824987,0.25,140.17,140.1,2.00886259]
[1642548825385,2.854,140.18,140.11,0.25]
[1642548825587,59.5037,140.21,140.13,10.7017]
[1642548825787,0.25,140.2,140.13,10.7017]
[1642548825992,49.15372822,140.2,140.13,58.39317158]
[1642548826990,49.15372822,140.2,140.13,10.7017]
[1642548827991,49.15372822,140.2,140.13,36.53922673]
[1642548828592,51.6545,140.21,140.13,36.53922673]
[1642548828792,48.8015,140.21,140.14,0.25]
[1642548828991,48.8015,140.21,140.14,21.2003]
[1642548829993,0.25,140.2,140.14,21.2003]
[1642548832920,0.25,140.2,140.14,10.25]
[1642548833119,0.25,140.2,140.13,38.54808932]
[1642548833317,3.103,140.2,140.13,38.54808932]
[1642548834121,3.103,140.2,140.13,47.24072673]
[1642548834421,0.25,140.2,140.13,47.24072673]
[1642548835825,51.6545,140.21,140.13,47.24072673]
[1642548836026,4.23270477,140.24,140.15,10.6996]
[1642548836227,1.37970477,140.24,140.16,0.25]
[1642548836426,1.37970477,140.24,140.16,6.25]
[1642548836825,1.37970477,140.24,140.17,43.95132808]
[1642548837030,1.37970477,140.24,140.17,125.46132808]
[1642548837225,1.37970477,140.24,140.18,0.25]
[1642548837426,1.37970477,140.24,140.18,16.9477]
[1642548838828,43.75871647,140.24,140.18,20.9477]
[1642548839027,2.852,140.23,140.18,10.25]
[1642548840131,0.25,140.22,140.18,10.25]
[1642548840731,4.23270477,140.24,140.18,10.25]
[1642548841831,53.23654875,140.24,140.18,10.25]
[1642548842132,0.25,140.23,140.18,10.25]
[1642548843231,1.37970477,140.24,140.18,20.9477]
[1642548843431,0.87970477,140.24,140.18,20.9477]
[1642548843631,81.2838131,140.27,140.19,0.25]
[1642548843835,42.23117202,140.26,140.19,6.25]
[1642548844032,42.23117202,140.26,140.19,6.0]
[1642548844232,42.23117202,140.26,140.18,10.25]
[1642548844433,45.08317202,140.26,140.18,10.25]
[1642548845234,0.25,140.25,140.18,10.25]
[1642548845633,0.25,140.25,140.16,12.25886259]
[1642548845833,23.66,140.25,140.16,12.25886259]
[1642548846035,23.66,140.25,140.16,10.25]
[1642548846234,2.852,140.24,140.16,10.25]
[1642548846433,45.23190911,140.23,140.16,10.25]
[1642548846635,45.48190911,140.23,140.16,10.25]
[1642548847334,0.25,140.23,140.16,10.25]
[1642548847543,0.25,140.23,140.16,20.9493]
[1642548848135,0.25,140.24,140.16,20.9493]
[1642548848336,38.22127843,140.24,140.16,20.9493]
[1642548849938,0.25,140.24,140.16,20.9493]
[1642548850641,78.4318131,140.27,140.16,20.9493]
[1642548850642,81.2848131,140.27,140.19,10.6963]
[1642548850838,43.94216891,140.26,140.2,10.25]
[1642548851038,43.94216891,140.26,140.2,10.5]
[1642548851239,43.94216891,140.26,140.2,10.25]
[1642548851841,0.25,140.25,140.2,10.25]
[1642548852041,3.102,140.25,140.2,10.25]
[1642548852842,3.102,140.25,140.17,10.6985]
[1642548853042,3.102,140.25,140.17,20.9485]
[1642548853241,3.102,140.25,140.18,35.96113814]
[1642548853643,3.102,140.25,140.18,46.21113814]
[1642548854244,3.102,140.25,140.18,56.90873814]
[1642548854444,0.25,140.25,140.18,56.90873814]
[1642548854743,0.25,140.25,140.18,10.25]
[1642548855045,10.9492,140.25,140.18,10.25]
[1642548855644,10.9492,140.25,140.18,45.10255011]
[1642548855845,0.25,140.25,140.18,45.10255011]
[1642548856646,69.72596891,140.26,140.18,45.10255011]
[1642548856847,80.42426891,140.26,140.18,45.10255011]
[1642548858251,0.25,140.25,140.19,0.25]
[1642548858549,66.87396891,140.26,140.19,0.25]
[1642548858752,0.25,140.25,140.2,10.25]
[1642548861954,0.25,140.25,140.2,20.9462]
[1642548862157,66.87396891,140.26,140.2,20.9462]
[1642548862956,22.9318,140.26,140.21,43.21853165]
[1642548863155,76.65122531,140.27,140.21,54.16343165]
[1642548863354,76.65122531,140.27,140.22,10.25]
[1642548863554,76.65122531,140.27,140.22,16.25]
[1642548863755,76.65122531,140.27,140.23,0.25]
[1642548863955,76.65122531,140.27,140.23,10.5]
[1642548864157,76.65122531,140.27,140.24,43.58651027]
[1642548864356,38.2627203,140.3,140.24,43.58651027]
[1642548864557,38.2627203,140.3,140.25,0.25]
[1642548866079,6.21342916,140.33,140.25,82.2022]
[1642548866281,4.63158779,140.33,140.25,106.960244]
[1642548866479,1.78058779,140.33,140.25,106.960244]
[1642548866985,1.78058779,140.35,140.25,106.960244]
[1642548867579,1.78058779,140.35,140.25,235.100244]
[1642548868182,146.07869041,140.36,140.25,235.100244]
[1642548869084,146.07869041,140.36,140.25,228.287244]
[1642548871582,99.5725414,140.36,140.25,226.5922]
[1642548871783,99.5725414,140.36,140.25,104.3302]
[1642548871982,99.5725414,140.36,140.29,10.6842]
[1642548872182,99.5725414,140.36,140.31,71.26]
[1642548872382,99.5725414,140.36,140.32,10.25]
[1642548872583,99.5725414,140.36,140.33,39.41260696]
[1642548872786,99.5725414,140.36,140.34,10.5]
[1642548872987,99.5725414,140.36,140.35,33.6836]
[1642548873288,99.5725414,140.36,140.35,21.1836]
[1642548873588,36.64107741,140.4,140.35,21.1836]
[1642548873786,36.64107741,140.4,140.36,0.25]
[1642548873985,36.64107741,140.4,140.36,10.5]
[1642548874386,36.64107741,140.4,140.36,10.25]
[1642548874788,3.099,140.39,140.36,10.25]
[1642548874989,6.06,140.38,140.36,10.25]
[1642548875188,2.849,140.37,140.36,10.25]
[1642548875388,47.92273545,140.37,140.32,10.25]
[1642548875592,47.92273545,140.37,140.32,20.9373]
[1642548875793,47.92273545,140.37,140.33,0.25]
[1642548875796,45.07373545,140.37,140.33,0.25]
[1642548876595,45.07373545,140.37,140.31,10.688]
[1642548876791,45.07373545,140.37,140.27,58.3816]
[1642548876792,3.1,140.36,140.3,10.25]
[1642548876992,3.1,140.36,140.26,10.25]
[1642548877192,3.1,140.36,140.28,0.25]
[1642548877399,6.0,140.35,140.24,10.25]
[1642548877595,59.37843984,140.34,140.24,10.25]
[1642548877794,65.62543984,140.34,140.24,10.25]
[1642548878297,65.62543984,140.34,140.25,53.20966662]
[1642548879095,59.62843984,140.34,140.25,53.20966662]
[1642548879695,48.68593984,140.34,140.27,10.6906]
[1642548879896,2.851,140.34,140.27,10.6906]
[1642548880098,2.851,140.34,140.28,16.5]
[1642548880299,78.61508779,140.39,140.28,10.5]
[1642548880300,2.85,140.36,140.28,10.5]
[1642548880496,2.85,140.38,140.28,10.5]
[1642548880698,0.25,140.37,140.28,10.5]
[1642548881001,41.18363171,140.37,140.29,43.82949319]
[1642548881198,41.18363171,140.37,140.3,0.25]
[1642548881599,41.18363171,140.37,140.3,10.9386]
[1642548882299,2.85,140.38,140.3,10.9386]
[1642548882498,76.8345,140.39,140.31,10.25]
[1642548882700,76.8345,140.39,140.33,10.6865]
[1642548882899,78.517669,140.4,140.33,10.6865]
[1642548883199,78.517669,140.4,140.34,0.25]
[1642548883397,78.517669,140.4,140.34,36.1709557]
[1642548884200,78.517669,140.4,140.34,57.1065557]
[1642548885203,36.32516875,140.42,140.34,128.3665557]
[1642548885605,36.32516875,140.42,140.37,10.6832]
[1642548886603,36.32516875,140.42,140.37,51.03797767]
[1642548889005,36.32516875,140.42,140.37,10.6832]
[1642548890906,36.32516875,140.42,140.37,56.71254011]
[1642548891107,36.32516875,140.42,140.37,10.6832]
[1642548892931,6.0,140.41,140.37,10.6832]
[1642548893132,6.0,140.41,140.38,0.25]
[1642548893533,6.0,140.43,140.38,0.25]
[1642548894333,49.16160927,140.43,140.38,0.25]
[1642548894733,49.16160927,140.43,140.37,10.6832]
[1642548894934,52.01060927,140.43,140.35,10.6845]
[1642548895345,52.01060927,140.43,140.33,45.8612]
[1642548895539,52.01060927,140.43,140.34,43.67500646]
[1642548895741,0.25,140.42,140.33,10.25]
[1642548895942,2.849,140.41,140.33,20.9365]
[1642548896141,2.849,140.41,140.29,10.25]
[1642548896342,6.25,140.4,140.29,10.25]
[1642548896546,2.85,140.39,140.29,10.25]
[1642548896742,46.6182352,140.39,140.3,40.4921142]
[1642548896943,46.6182352,140.39,140.29,10.25]
[1642548897444,46.6182352,140.39,140.31,10.688]
[1642548897642,6.0,140.38,140.31,10.688]
[1642548897847,6.0,140.38,140.29,10.25]
[1642548898048,3.1,140.37,140.26,10.25]
[1642548898550,10.692,140.35,140.25,10.692]
[1642548898756,3.101,140.34,140.25,10.692]
[1642548898946,43.41495948,140.33,140.26,48.42768322]
[1642548899547,43.41495948,140.33,140.27,10.6912]
[1642548899748,2.851,140.35,140.27,10.6912]
[1642548899947,4.63158779,140.35,140.28,6.0]
[1642548900147,1.78058779,140.35,140.28,6.0]
[1642548900550,1.78058779,140.35,140.3,10.6889]
[1642548900749,37.37319674,140.34,140.3,10.6889]
[1642548901957,6.0,140.36,140.3,10.6889]
[1642548902153,6.0,140.37,140.3,10.6889]
[1642548902353,0.25,140.35,140.3,10.6889]
[1642548903086,47.99397421,140.35,140.3,10.6889]
[1642548903585,1.78058779,140.38,140.3,10.6889]
[1642548903783,1.78058779,140.38,140.31,10.5]
[1642548903983,1.78058779,140.38,140.33,10.685]
[1642548904185,1.78058779,140.38,140.33,20.935]
[1642548904486,44.60691113,140.38,140.33,20.935]
[1642548905085,42.82632334,140.38,140.33,20.935]
[1642548906488,42.82632334,140.38,140.33,10.685]
[1642548906992,0.25,140.37,140.32,10.6873]
[1642548907393,0.25,140.37,140.33,6.0]
[1642548907590,3.1,140.37,140.32,10.6873]
[1642548907791,10.713,140.37,140.25,3.69681849]
[1642548907991,6.0,140.36,140.26,10.6919]
[1642548908192,3.1,140.35,140.25,3.69681849]
[1642548908592,36.23211006,140.33,140.23,37.26294479]
[1642548908791,3.101,140.32,140.23,37.26294479]
[1642548908991,9.101,140.32,140.24,6.25]
[1642548909993,9.101,140.32,140.25,10.6926]
[1642548910195,36.23211006,140.33,140.26,0.25]
[1642548910393,36.23211006,140.33,140.25,10.6926]
[1642548910394,0.25,140.32,140.25,10.6926]
[1642548910598,8.839,140.32,140.22,10.25]
[1642548910794,2.851,140.31,140.23,0.25]
[1642548910994,8.851,140.31,140.23,6.25]
[1642548911197,0.25,140.3,140.23,6.25]
[1642548911598,37.36194653,140.3,140.23,50.16867891]
[1642548911997,6.0,140.29,140.23,50.16867891]
[1642548912399,37.11194653,140.3,140.23,121.42867891]
[1642548912598,4.63158779,140.34,140.24,1.43796136]
[1642548912798,4.63158779,140.34,140.25,10.5]
[1642548912999,4.63158779,140.34,140.25,10.25]
[1642548913398,2.851,140.34,140.25,10.25]
[1642548913698,37.53081914,140.33,140.25,10.25]
[1642548913898,2.851,140.32,140.25,10.25]
[1642548914301,0.25,140.31,140.25,10.25]
[1642548916202,2.851,140.32,140.26,0.25]
[1642548916401,47.19328779,140.35,140.27,10.25]
[1642548916402,1.78058779,140.35,140.27,10.25]
[1642548916600,1.78058779,140.35,140.27,20.9403]
[1642548916799,1.78058779,140.35,140.28,0.25]
[1642548917000,79.19168779,140.38,140.29,10.25]
[1642548917202,79.19168779,140.38,140.3,0.25]
[1642548917401,35.00778763,140.37,140.3,0.25]
[1642548918701,35.00778763,140.37,140.3,10.9384]
[1642548918900,37.85778763,140.37,140.3,10.9384]
[1642548919904,0.25,140.36,140.29,20.9396]
[1642548920201,2.85,140.35,140.26,10.25]
[1642548920600,0.25,140.34,140.26,10.25]
[1642548920800,2.851,140.33,140.26,10.25]
[1642548921001,35.8368444,140.32,140.24,45.78938446]
[1642548921203,36.0868444,140.32,140.25,0.25]
[1642548921609,35.8368444,140.32,140.25,0.25]
[1642548921806,35.8368444,140.32,140.25,6.25]
[1642548922507,35.8368444,140.32,140.26,10.6919]
[1642548922705,35.8368444,140.32,140.27,0.25]
[1642548923906,35.8368444,140.32,140.26,0.25]
[1642548924410,35.8368444,140.32,140.27,10.6911]
[1642548925408,35.8368444,140.32,140.28,0.25]
[1642548926008,23.1635,140.34,140.28,0.25]
[1642548926811,23.1635,140.34,140.28,10.9404]
[1642548927011,23.1635,140.34,140.28,10.6904]
[1642548927414,41.46347225,140.33,140.28,10.6904]
[1642548929139,41.46347225,140.33,140.26,0.25]
[1642548929340,0.25,140.32,140.25,6.0]
[1642548929539,2.851,140.31,140.24,6.0]
[1642548929940,45.25882142,140.3,140.24,6.0]
[1642548930340,45.25882142,140.3,140.24,16.6928]
[1642548930743,45.25882142,140.3,140.25,0.25]
[1642548931543,45.25882142,140.3,140.25,10.5]
[1642548931744,45.25882142,140.3,140.25,58.00264202]
[1642548931943,45.25882142,140.3,140.25,21.1927]
[1642548937145,51.18882142,140.3,140.25,0.25]
[1642548937348,8.851,140.29,140.21,2.00886259]
[1642548937547,9.101,140.29,140.21,2.00886259]
[1642548938147,19.7975,140.29,140.21,2.00886259]
[1642548938348,19.7975,140.29,140.2,10.25]
[1642548939147,19.7975,140.29,140.18,2.00886259]
[1642548939351,23.8114,140.28,140.18,2.00886259]
[1642548939547,10.6999,140.25,140.18,2.00886259]
[1642548939748,45.12628537,140.23,140.18,2.00886259]
[1642548940150,45.12628537,140.23,140.16,39.17035453]
[1642548940849,45.12628537,140.23,140.17,10.5]
[1642548941449,45.12628537,140.23,140.18,10.698]
[1642548941650,0.25,140.24,140.18,10.698]
[1642548942049,2.853,140.25,140.19,0.25]
[1642548942249,2.853,140.25,140.17,82.02]
[1642548942454,27.3904,140.26,140.19,10.6974]
[1642548942650,65.06062229,140.26,140.19,69.89880801]
[1642548942850,0.25,140.25,140.19,69.89880801]
[1642548943853,0.25,140.25,140.19,20.9474]
[1642548944053,0.25,140.25,140.19,22.38536136]
[1642548944953,0.25,140.25,140.19,71.99216744]
[1642548945354,0.25,140.25,140.19,22.38536136]
[1642548945957,62.20862229,140.26,140.19,22.38536136]
[1642548946154,37.67022229,140.26,140.2,0.25]
[1642548946355,37.67022229,140.26,140.21,10.6948]
[1642548946554,37.67022229,140.26,140.21,20.9448]
[1642548946854,37.67022229,140.26,140.22,0.25]
[1642548947856,37.67022229,140.26,140.21,6.0]
[1642548947857,37.67022229,140.26,140.21,6.25]
[1642548948055,37.67022229,140.26,140.21,16.5]
[1642548948257,37.67022229,140.26,140.21,10.5]
[1642548948462,105.0386,140.29,140.22,10.6946]
[1642548948659,23.5383,140.29,140.22,10.6946]
[1642548948858,23.5383,140.29,140.23,0.25]
[1642548949060,26.3903,140.29,140.21,10.5]
[1642548949460,45.02397959,140.28,140.21,10.5]
[1642548950562,45.02397959,140.28,140.23,10.6943]
[1642548955488,45.02397959,140.28,140.21,10.6952]
[1642548955686,0.25,140.27,140.21,10.6952]
[1642548955888,3.102,140.27,140.2,6.0]
[1642548956586,3.102,140.27,140.2,10.6966]
[1642548956788,3.102,140.27,140.17,45.9037]
[1642548956987,3.102,140.27,140.17,10.25]
[1642548957189,3.102,140.27,140.18,0.25]
[1642548957788,3.102,140.27,140.19,10.6973]
[1642548959792,2.852,140.27,140.21,10.6955]
[1642548959991,68.97427959,140.28,140.22,36.46145212]
[1642548960195,68.97427959,140.28,140.22,36.71145212]
[1642548960592,23.9503,140.28,140.22,36.71145212]
[1642548961193,23.5383,140.29,140.23,10.9445]
[1642548961394,1.78058779,140.31,140.23,21.1945]
[1642548961596,6.0,140.3,140.24,6.0]
[1642548961793,54.42096746,140.3,140.25,0.25]
[1642548961993,54.42096746,140.3,140.25,10.25]
[1642548962193,51.27196746,140.3,140.25,10.25]
[1642548962594,48.42096746,140.3,140.25,10.25]
[1642548962792,48.42096746,140.3,140.25,20.9427]
[1642548963294,2.851,140.31,140.26,0.25]
[1642548963494,24.3759,140.32,140.26,10.5]
[1642548963695,24.3759,140.32,140.27,0.25]
[1642548964295,4.63158779,140.34,140.28,82.94457798]
[1642548964496,3.86750193,140.37,140.35,85.23099999]
[1642548964497,0.00750193,140.37,140.35,85.23099999]
[1642548964696,0.00750193,140.37,140.36,10.25]
[1642548964896,67.43811967,140.39,140.36,10.25]
[1642548965098,62.23615121,140.39,140.36,10.25]
[1642548965499,62.23615121,140.39,140.37,0.25]
[1642548965699,5.20196846,140.41,140.38,10.6827]
[1642548965897,2.849,140.46,140.38,20.9327]
[1642548966097,2.848,140.47,140.38,20.9327]
[1642548966297,2.848,140.47,140.38,10.25]
[1642548966500,6.0,140.46,140.38,10.25]
[1642548966701,2.848,140.45,140.38,20.9342]
[1642548967099,2.848,140.47,140.38,20.9342]
[1642548967302,45.40071867,140.44,140.38,20.9342]
[1642548967500,2.848,140.43,140.38,20.9342]
[1642548967703,0.25,140.42,140.38,20.9342]
[1642548968300,2.848,140.43,140.38,20.9342]
[1642548968501,2.848,140.43,140.4,10.6822]